bitfinex/quotes_ETHUSD_20250909
["timestamp","ask_amount","ask_price","bid_price","bid_amount"]
[1757432300399,12.60729936,4280.2,4279.8,1e-08]
[1757432302423,12.60629936,4280.2,4279.8,1e-08]
[1757432304435,12.13729936,4280.2,4279.8,1e-08]
[1757432304639,11.66099936,4280.2,4279.8,1e-08]
[1757432305008,11.37499936,4280.2,4279.8,1e-08]
[1757432305245,11.66099936,4280.2,4279.8,1e-08]
[1757432305607,11.37499936,4280.2,4279.8,1e-08]
[1757432305937,11.66099936,4280.2,4279.8,1e-08]
[1757432306143,11.37499936,4280.2,4279.8,1e-08]
[1757432306338,7.40099936,4280.2,4279.8,1e-08]
[1757432306587,11.37399936,4280.2,4279.8,1e-08]
[1757432306786,0.17516468,4280.7,4280.1,0.3564]
[1757432307091,2.33633942,4280.2,4280.1,0.3564]
[1757432307240,0.1168,4280.4,4280.1,0.3564]
[1757432307441,3.973,4280.3,4280.1,0.3564]
[1757432307697,3.973,4280.3,4280.1,0.04]
[1757432307698,2.33633942,4280.2,4280.1,0.04]
[1757432308282,2.33633942,4280.2,4280.1,0.042]
[1757432308593,2.62233942,4280.2,4280.1,0.042]
[1757432308753,2.33633942,4280.2,4280.1,0.042]
[1757432308953,2.33633942,4280.2,4280.1,0.3584]
[1757432309258,0.1168,4280.4,4280.1,0.7957]
[1757432309453,3.23066586,4280.9,4280.1,0.56897]
[1757432309454,3.973,4280.2,4280.1,0.56897]
[1757432309685,3.971,4280.2,4280.1,0.68577]
[1757432309898,3.971,4280.2,4280.1,0.4752]
[1757432310188,3.971,4280.2,4280.1,0.9125]
[1757432310370,6.30733942,4280.2,4280.1,0.042]
[1757432310555,7.38533942,4280.2,4280.1,0.042]
[1757432310755,8.32963942,4280.2,4280.1,0.042]
[1757432310948,9.40790998,4280.2,4280.1,0.042]
[1757432311484,8.93890998,4280.2,4280.1,0.042]
[1757432311779,9.39140998,4280.2,4280.1,0.042]
[1757432312289,12.39140998,4280.2,4280.1,0.042]
[1757432312897,11.17760998,4280.2,4280.1,0.042]
[1757432313042,7.96740998,4280.2,4280.1,0.042]
[1757432313242,11.94900998,4280.2,4280.1,0.042]
[1757432313445,12.40150998,4280.2,4280.1,0.042]
[1757432313747,11.48690998,4280.2,4280.1,0.042]
[1757432313949,7.20660998,4280.2,4280.1,0.336]
[1757432314154,10.10133942,4280.2,4280.1,0.336]
[1757432314746,10.10133942,4280.2,4280.1,0.042]
[1757432315094,10.40963942,4280.2,4280.1,0.042]
[1757432315597,11.32423942,4280.2,4280.1,0.042]
[1757432315798,10.40963942,4280.2,4280.1,0.042]
[1757432316485,11.32423942,4280.2,4280.1,0.042]
[1757432317148,10.10133942,4280.2,4280.1,0.042]
[1757432317355,10.40963942,4280.2,4280.1,0.042]
[1757432317545,10.10133942,4280.2,4280.1,0.042]
[1757432318347,10.10053942,4280.2,4280.1,0.042]
[1757432318553,10.40883942,4280.2,4280.1,0.042]
[1757432318775,11.42029998,4280.2,4280.1,0.042]
[1757432319290,10.10253942,4280.2,4280.1,0.7692]
[1757432319589,10.10253942,4280.2,4280.1,0.042]
[1757432319750,10.10253942,4280.2,4280.1,0.7692]
[1757432320181,10.10153942,4280.2,4280.1,0.7692]
[1757432320382,10.10153942,4280.2,4280.1,0.336]
[1757432320990,6.30853942,4280.2,4280.1,0.336]
[1757432321190,6.30853942,4280.2,4280.1,1.2258]
[1757432321390,2.33628434,4280.4,4280.1,1.2258]
[1757432321620,3.972,4280.3,4280.1,0.336]
[1757432321769,3.972,4280.3,4280.2,0.8898]
[1757432321770,6.3083143,4280.3,4280.2,0.8898]
[1757432321968,2.33633942,4280.2,4280.1,0.042]
[1757432322594,2.33633942,4280.2,4280.1,0.336]
[1757432322794,6.30833942,4280.2,4280.1,0.042]
[1757432323010,8.27310479,4280.2,4280.1,0.042]
[1757432323309,8.48917011,4280.2,4280.1,0.042]
[1757432323509,8.60597011,4280.2,4280.1,0.042]
[1757432323684,8.60597011,4280.2,4280.1,0.336]
[1757432323685,8.29767011,4280.2,4280.1,0.336]
[1757432324010,7.43220474,4280.2,4280.1,0.042]
[1757432324185,7.74050474,4280.2,4280.1,0.042]
[1757432324798,8.20260474,4280.2,4280.1,0.042]
[1757432324999,8.20260474,4280.2,4280.1,0.336]
[1757432325000,7.43220474,4280.2,4280.1,0.336]
[1757432325883,3.46120474,4280.2,4280.1,0.336]
[1757432326076,4.19406532,4280.2,4280.1,0.336]
[1757432326283,4.19306532,4280.2,4280.1,1.3426]
[1757432326689,3.977,4280.2,4280.1,1.3426]
[1757432326885,1.9088,4280.9,4280.1,1.60786]
[1757432327073,0.001,4280.5,4280.2,0.8898]
[1757432327285,0.001,4280.5,4280.1,0.71806]
[1757432327286,4.19547772,4280.4,4280.3,0.8898]
[1757432327526,0.21647772,4280.4,4280.3,1.1838]
[1757432327697,3.979,4280.4,4280.3,1.1838]
[1757432328076,3.979,4280.4,4280.3,0.7272]
[1757432328274,3.979,4280.4,4280.1,0.1588]
[1757432328625,6.31523415,4280.4,4280.1,0.042]
[1757432328914,2.33628483,4280.3,4280.2,0.4332]
[1757432329155,2.33633942,4280.2,4280.1,0.042]
[1757432329317,6.31533942,4280.2,4280.1,0.042]
[1757432329894,6.53189302,4280.2,4280.1,0.042]
[1757432330089,6.62363942,4280.2,4280.1,0.042]
[1757432330313,8.69032091,4280.2,4280.1,0.042]
[1757432330517,7.44068348,4280.2,4280.1,0.042]
[1757432330685,7.44068348,4280.2,4280.1,0.336]
[1757432330686,6.52988348,4280.2,4280.1,0.336]
[1757432331484,6.83818348,4280.2,4280.1,0.042]
[1757432331792,7.30028348,4280.2,4280.1,0.042]
[1757432331995,6.83818348,4280.2,4280.1,0.042]
[1757432332196,7.63018348,4280.2,4280.1,0.042]
[1757432332393,9.10070555,4280.2,4280.1,0.042]
[1757432332617,9.55320555,4280.2,4280.1,0.042]
[1757432332796,12.55320555,4280.2,4280.1,0.042]
[1757432333404,11.63860555,4280.2,4280.1,0.042]
[1757432333820,5.336394,4280.1,4280.0,1e-08]
[1757432334020,9.13339162,4280.1,4280.0,1e-08]
[1757432334634,13.10739162,4280.1,4280.0,1e-08]
[1757432335207,13.89939162,4280.1,4280.0,1e-08]
[1757432335626,14.02934377,4280.1,4280.0,1e-08]
[1757432336168,9.14074377,4280.1,4280.0,1e-08]
[1757432336316,14.03234377,4280.1,4280.0,1e-08]
[1757432336515,10.05534377,4280.1,4280.0,1e-08]
[1757432337009,13.57984377,4280.1,4280.0,1e-08]
[1757432337213,14.03234377,4280.1,4280.0,1e-08]
[1757432337819,13.57984377,4280.1,4280.0,1e-08]
[1757432338024,13.11774377,4280.1,4280.0,1e-08]
[1757432338441,14.03234377,4280.1,4280.0,1e-08]
[1757432338639,9.14074377,4280.1,4280.0,1e-08]
[1757432338960,12.98679162,4280.1,4280.0,1e-08]
[1757432339256,9.01079162,4280.1,4280.0,1e-08]
[1757432339463,8.32100731,4280.1,4280.0,0.29400001]
[1757432339823,8.32100731,4280.1,4280.0,1e-08]
[1757432340162,2.00961331,4280.1,4280.0,0.29400001]
[1757432340369,5.98561331,4280.1,4280.0,1.18380001]
[1757432340778,2.00954208,4280.1,4280.0,1.18380001]
[1757432340982,0.001,4280.5,4280.0,1.30218001]
[1757432341134,3.902,4280.4,4280.1,0.8898]
[1757432341336,3.902,4280.4,4280.3,0.294]
[1757432341638,0.001,4280.5,4280.3,1.1838]
[1757432341834,0.001,4280.5,4280.3,0.7517]
[1757432342028,0.001,4280.5,4280.4,0.4494]
[1757432342533,0.001,4280.5,4280.4,1.2156]
[1757432342731,2.33717568,4280.5,4280.4,1.2156]
[1757432342931,2.33717568,4280.5,4280.4,0.3085]
[1757432343241,2.33717568,4280.5,4280.0,0.11838001]
[1757432343242,2.33633951,4280.2,4280.0,1e-08]
[1757432343459,3.974,4280.1,4280.0,1e-08]
[1757432343868,3.974,4280.1,4280.0,1.21560001]
[1757432344049,3.974,4280.1,4280.0,0.30850001]
[1757432344266,6.310394,4280.1,4280.0,0.30850001]
[1757432344467,6.310394,4280.1,4280.0,1e-08]
[1757432344769,6.309594,4280.1,4280.0,1e-08]
[1757432345731,6.606894,4280.1,4280.0,1e-08]
[1757432345937,8.42351517,4280.1,4280.0,1e-08]
[1757432346193,7.71763275,4280.1,4280.0,1e-08]
[1757432346337,7.71763275,4280.1,4280.0,0.00200001]
[1757432346539,8.18713275,4280.1,4280.0,0.00200001]
[1757432346797,12.56175233,4280.1,4280.0,0.00200001]
[1757432347000,8.58855233,4280.1,4280.0,0.00200001]
[1757432347295,12.56855233,4280.1,4280.0,0.00200001]
[1757432351074,8.58855233,4280.1,4280.0,0.00200001]
[1757432351279,4.647,4279.9,4277.3,1.6726776]
[1757432351477,3.0,4280.0,4277.0,0.4577]
[1757432351478,3.0,4279.5,4277.2,0.4494]
[1757432351692,3.0,4279.5,4277.7,3.1267416]
[1757432351693,3.12943163,4278.2,4277.7,3.1267416]
[1757432352043,9.22073163,4278.2,4277.7,2.6773416]
[1757432352194,10.14303163,4278.2,4277.7,2.6773416]
[1757432352395,8.92243163,4278.2,4277.7,2.6773416]
[1757432352595,10.1140528,4278.2,4277.7,2.6773416]
[1757432353136,11.0363528,4278.2,4277.7,2.6773416]
[1757432353643,8.92343163,4278.2,4278.1,1.2556]
[1757432353855,6.586,4278.2,4278.1,1.2556]
[1757432354010,6.585,4278.2,4278.1,1.2556]
[1757432354223,8.13143163,4278.2,4278.1,1.2556]
[1757432354406,8.13143163,4278.2,4278.1,0.04]
[1757432354607,5.794,4278.2,4278.1,0.04]
[1757432354809,8.13143163,4278.2,4278.1,0.04]
[1757432355053,9.04023163,4278.2,4278.1,0.04]
[1757432355912,9.33753163,4278.2,4278.1,0.04]
[1757432357138,10.55029856,4278.2,4278.1,0.04]
[1757432357735,10.25299856,4278.2,4278.1,0.04]
[1757432357943,9.04023163,4278.2,4278.1,0.04]
[1757432358552,6.7008,4278.2,4278.1,0.7979]
[1757432359108,5.03923163,4278.2,4278.1,0.7979]
[1757432359329,9.03723163,4278.2,4278.1,0.3485]
[1757432359529,9.03723163,4278.2,4278.1,0.7979]
[1757432359530,2.7018,4278.2,4278.1,0.7979]
[1757432359762,6.583,4278.2,4278.1,0.7979]
[1757432360693,8.92043163,4278.2,4278.1,0.04]
[1757432360844,8.92043163,4278.2,4278.1,0.7979]
[1757432361477,8.92043163,4278.2,4278.1,0.3485]
[1757432361771,6.583,4278.2,4278.1,0.3485]
[1757432362061,2.585,4278.2,4278.1,0.3485]
[1757432362563,6.583,4278.2,4278.1,0.3485]
[1757432362867,8.92043163,4278.2,4278.1,0.3485]
[1757432363089,6.583,4278.2,4278.1,0.7979]
[1757432363291,8.92043163,4278.2,4278.1,1.2556]
[1757432363465,6.583,4278.2,4278.1,0.7979]
[1757432363666,1.793,4278.2,4278.1,1.2556]
[1757432363856,5.79,4278.2,4278.1,1.2556]
[1757432364059,8.12743163,4278.2,4278.1,1.2556]
[1757432364312,8.12743163,4278.2,4278.1,0.3485]
[1757432364673,5.79,4278.2,4278.1,0.3485]
[1757432364995,2.33681273,4279.4,4278.1,1.2556]
[1757432365293,2.45372617,4279.2,4278.5,0.1168]
[1757432365458,3.996,4279.1,4278.6,0.9071]
[1757432365653,3.996,4279.1,4279.0,0.3085]
[1757432365870,4.788,4279.1,4279.0,0.3085]
[1757432366065,0.792,4279.1,4279.0,0.3085]
[1757432366402,4.788,4279.1,4279.0,0.3085]
[1757432366584,2.45371083,4279.2,4279.0,0.3085]
[1757432366792,3.995,4279.1,4278.7,0.4577]
[1757432367044,6.3319515,4279.1,4278.7,0.9071]
[1757432367351,6.3319515,4279.1,4279.0,0.3085]
[1757432367540,6.33194001,4279.1,4279.0,0.5085]
[1757432367740,2.33694001,4279.1,4279.0,0.5085]
[1757432367928,3.995,4279.1,4279.0,0.5085]
[1757432368538,3.995,4279.1,4279.0,0.9579]
[1757432368724,3.995,4279.1,4279.0,1.4156]
[1757432368940,3.993,4279.1,4279.0,1.4156]
[1757432369142,3.993,4279.1,4279.0,0.3168]
[1757432369531,7.12194001,4279.1,4279.0,0.2]
[1757432369747,7.12194001,4279.1,4279.0,0.5085]
[1757432369941,4.785,4279.1,4279.0,0.5085]
[1757432370272,7.12194001,4279.1,4279.0,0.5085]
[1757432370414,4.785,4279.1,4279.0,0.5085]
[1757432370615,4.7842,4279.1,4279.0,0.5085]
[1757432371344,7.12114001,4279.1,4279.0,0.2]
[1757432371521,7.12114001,4279.1,4279.0,0.5085]
[1757432372145,7.12114001,4279.1,4279.0,0.2]
[1757432372352,4.7842,4279.1,4279.0,0.2]
[1757432372656,4.7842,4279.1,4279.0,0.4862]
[1757432372858,7.12114001,4279.1,4279.0,0.2]
[1757432373061,7.41054001,4279.1,4279.0,0.2]
[1757432373262,8.44183775,4279.1,4279.0,0.2]
[1757432373557,9.35163775,4279.1,4279.0,0.2]
[1757432375224,8.90283775,4279.1,4279.0,0.2]
[1757432376051,9.35163775,4279.1,4279.0,0.2]
[1757432376234,9.56758299,4279.1,4279.0,0.2]
[1757432376926,4.7842,4279.1,4279.0,0.2]
[1757432377270,3.987,4279.1,4279.0,0.9585]
[1757432377448,3.987,4279.1,4279.0,0.4862]
[1757432377967,7.11594001,4279.1,4279.0,0.4862]
[1757432378542,4.779,4279.1,4279.0,0.4862]
[1757432379254,0.792,4279.1,4279.0,0.9585]
[1757432379460,3.501,4279.1,4279.0,1.4239]
[1757432380649,3.984,4279.1,4279.0,1.4239]
[1757432380850,3.984,4279.1,4279.0,3.76089178]
[1757432381591,3.984,4279.2,4279.0,2.04537964]
[1757432381787,3.984,4279.2,4279.1,0.9377]
[1757432382075,3.984,4279.2,4279.1,3.56084001]
[1757432382256,3.984,4279.2,4279.1,1.2239]
[1757432382582,3.984,4279.2,4279.0,0.2]
[1757432382966,0.2894,4279.1,4279.0,0.2]
[1757432383368,3.984,4279.2,4279.0,0.4862]
[1757432384246,3.984,4279.2,4279.0,0.2]
[1757432384754,0.2894,4279.1,4279.0,0.2]
[1757432384956,4.776,4279.2,4279.1,0.2862]
[1757432385167,3.982,4279.2,4279.1,1.2239]
[1757432385383,3.981,4279.4,4279.1,1.49710699]
[1757432385583,3.981,4279.6,4279.5,0.1168]
[1757432386246,2.33681614,4279.4,4279.0,0.2]
[1757432386480,3.982,4279.3,4279.0,0.2]
[1757432386850,6.31885101,4279.3,4279.0,0.2]
[1757432387278,3.982,4279.3,4279.0,0.2]
[1757432387752,3.982,4279.3,4279.2,0.2862]
[1757432388788,3.98,4279.3,4279.2,0.2862]
[1757432389109,0.1418,4279.8,4279.2,3.56078539]
[1757432389247,0.025,4279.8,4279.3,0.86005854]
[1757432389455,0.025,4279.8,4279.7,2.73961237]
[1757432389995,0.025,4279.8,4279.7,3.67731237]
[1757432390699,0.025,4279.8,4279.7,3.56051237]
[1757432390858,0.025,4279.8,4279.7,3.67731237]
[1757432391054,0.025,4279.8,4279.7,1.94210284]
[1757432391575,0.025,4279.8,4279.7,0.403]
[1757432391986,0.025,4279.8,4279.7,3.21191237]
[1757432392676,0.025,4279.8,4279.7,0.8753]
[1757432393026,0.025,4279.8,4279.7,0.1168]
[1757432393707,0.3144,4279.8,4279.7,0.1168]
[1757432393910,0.3144,4279.8,4279.0,0.2]
[1757432394111,2.65097322,4279.8,4279.5,0.1168]
[1757432394328,2.33685648,4279.3,4279.0,0.2]
[1757432394480,2.33683427,4279.3,4279.0,0.2]
[1757432394676,2.79783427,4279.3,4279.0,0.2]
[1757432394898,2.33690211,4279.2,4279.0,0.2]
[1757432395098,0.2894,4279.1,4279.0,0.2]
[1757432395299,2.62634001,4279.1,4279.0,0.2]
[1757432396009,0.2894,4279.1,4279.0,0.2]
[1757432396172,2.62634001,4279.1,4279.0,0.2]
[1757432396512,4.32814001,4279.1,4279.0,0.2]
[1757432396716,4.95902912,4279.1,4279.0,0.2]
[1757432396886,4.95822912,4279.1,4279.0,0.2]
[1757432398243,8.94222912,4279.1,4279.0,0.2]
[1757432398789,8.94222912,4279.1,4279.0,0.202]
[1757432399527,0.001,4279.6,4279.0,0.4882]
[1757432399738,2.3368809,4279.3,4279.0,0.4882]
[1757432399910,2.33687165,4279.3,4279.0,0.4882]
[1757432400089,2.33689994,4279.2,4279.0,0.4882]
[1757432400288,6.31889994,4279.2,4279.0,0.4882]
[1757432400490,0.1168,4279.4,4279.1,0.4723]
[1757432400685,2.33694001,4279.1,4279.0,0.202]
[1757432400889,3.87934001,4279.1,4279.0,0.202]
[1757432401100,3.41834001,4279.1,4279.0,0.202]
[1757432401832,4.40373772,4279.1,4279.0,0.202]
[1757432402046,5.28993772,4279.1,4279.0,0.202]
[1757432402940,7.08293772,4279.1,4279.0,0.202]
[1757432403140,7.51421535,4279.1,4279.0,0.202]
[1757432403288,7.29859028,4279.1,4279.0,0.202]
[1757432403493,7.51409462,4279.1,4279.0,0.202]
[1757432404332,7.29859028,4279.1,4279.0,0.202]
[1757432404733,7.09859028,4279.1,4279.0,0.002]
[1757432405641,11.07859028,4279.1,4279.0,0.002]
[1757432406462,14.07859028,4279.1,4279.0,0.002]
[1757432406628,14.29400702,4279.1,4279.0,0.002]
[1757432407061,14.07859028,4279.1,4279.0,0.002]
[1757432407270,14.29399814,4279.1,4279.0,0.002]
[1757432408841,14.4231547,4279.1,4279.0,0.002]
[1757432409351,14.42291855,4279.1,4279.0,0.002]
[1757432409663,14.68995266,4279.1,4279.0,0.002]
[1757432412090,14.68725266,4279.1,4279.0,0.002]
[1757432414997,10.70725266,4279.1,4279.0,0.002]
[1757432415201,14.68325266,4279.1,4279.0,0.002]
[1757432416295,10.70725266,4279.1,4279.0,0.002]
[1757432416506,21.56492905,4279.1,4279.0,0.002]
[1757432416804,21.13172905,4279.1,4279.0,0.002]
[1757432416955,8.29509367,4279.1,4279.0,0.2985]
[1757432417173,1.9675011,4279.1,4279.0,0.2985]
[1757432417420,1.794,4279.1,4279.0,1.2105]
[1757432417619,5.8868,4279.1,4279.0,1.2105]
[1757432418285,8.22474001,4279.1,4279.0,0.2985]
[1757432418488,8.22474001,4279.1,4279.0,0.002]
[1757432418489,12.88399212,4279.1,4279.0,0.002]
[1757432418693,14.12899212,4279.1,4279.0,0.002]
[1757432419079,14.34395944,4279.1,4279.0,0.002]
[1757432419284,14.12899212,4279.1,4279.0,0.002]
[1757432420187,14.34400521,4279.1,4279.0,0.002]
[1757432421285,14.55910712,4279.1,4279.0,0.002]
[1757432421793,21.57194007,4279.1,4279.0,0.002]
[1757432422199,21.57215576,4279.1,4279.0,0.002]
[1757432423216,21.57135576,4279.1,4279.0,0.002]
[1757432423423,20.39745576,4279.1,4279.0,0.002]
[1757432423633,20.68415576,4279.1,4279.0,0.002]
[1757432424186,20.39776792,4279.1,4279.0,0.002]
[1757432424385,20.39776792,4279.1,4279.0,0.2985]
[1757432425031,20.39776792,4279.1,4279.0,0.002]
[1757432425240,20.81384345,4279.1,4279.0,0.002]
[1757432425389,23.10004345,4279.1,4279.0,0.002]
[1757432427030,21.70004345,4279.1,4279.0,0.002]
[1757432428238,22.19693119,4279.1,4279.0,0.002]
[1757432428739,0.792,4278.5,4278.1,0.04]
[1757432429034,6.12943163,4278.2,4278.1,0.04]
[1757432429187,19.47128296,4278.2,4278.1,0.04]
[1757432430027,19.75798296,4278.2,4278.1,0.04]
[1757432430203,20.81413507,4278.2,4278.1,0.04]
[1757432430525,20.52768796,4278.2,4278.1,0.04]
[1757432431021,20.52768796,4278.2,4278.1,0.3365]
[1757432432500,20.52768796,4278.2,4278.1,0.04]
[1757432432501,20.81608796,4278.2,4278.1,0.04]
[1757432432895,20.52768796,4278.2,4278.1,0.3537]
[1757432433510,20.81608796,4278.2,4278.1,0.04]
[1757432433705,20.81608796,4278.2,4277.8,0.025]
[1757432433706,3.12959554,4277.9,4277.8,1e-08]
[1757432433908,7.31782432,4277.9,4277.8,1e-08]
[1757432434125,10.95126681,4277.9,4277.8,1e-08]
[1757432434326,10.66286681,4277.9,4277.8,0.31370001]
[1757432435124,6.68986681,4277.9,4277.8,0.31370001]
[1757432435431,10.66286681,4277.9,4277.8,0.76940001]
[1757432435727,11.71901892,4277.9,4277.8,0.31370001]
[1757432435929,11.58964339,4277.9,4277.8,0.31370001]
[1757432436095,3.56049128,4277.9,4277.8,1.24840001]
[1757432436296,0.21522878,4278.0,4277.8,1.24840001]
[1757432436603,9.30959554,4277.9,4277.8,0.31370001]
[1757432436797,9.30959554,4277.9,4277.8,0.00200001]
[1757432436798,17.32865727,4277.9,4277.8,0.00200001]
[1757432437239,6.34482432,4277.9,4277.8,0.77140001]
[1757432437396,6.34482432,4277.9,4277.8,1.25040001]
[1757432437602,10.31782432,4277.9,4277.8,1.25040001]
[1757432438733,4.00722878,4277.9,4277.8,1.25040001]
[1757432438895,10.31782432,4277.9,4277.8,1.25040001]
[1757432439096,4.98022878,4277.9,4277.8,1.25040001]
[1757432439313,4.765,4277.9,4277.8,1.25040001]
[1757432439838,4.98079628,4277.9,4277.8,1.25040001]
[1757432440011,1.9108,4278.2,4277.8,1.64317417]
[1757432440215,6.31049087,4278.1,4277.9,0.9347]
[1757432440537,3.12959554,4277.9,4277.8,0.00200001]
[1757432440740,7.10259554,4277.9,4277.8,0.00200001]
[1757432440915,4.98080729,4277.9,4277.8,1.25040001]
[1757432441302,7.31940283,4277.9,4277.8,1.25040001]
[1757432441526,7.43620283,4277.9,4277.8,1.25040001]
[1757432443242,6.64420283,4277.9,4277.8,1.25040001]
[1757432443744,7.43620283,4277.9,4277.8,0.00200001]
[1757432444138,7.43620283,4277.9,4277.8,0.31570001]
[1757432444820,7.43620283,4277.9,4277.8,0.77140001]
[1757432445020,5.09760729,4277.9,4277.8,1.25040001]
[1757432445249,0.33260729,4277.9,4277.8,1.25040001]
[1757432445446,0.1168,4277.9,4277.8,1.64317417]
[1757432445611,3.972,4277.9,4277.8,1.64317417]
[1757432446352,1.9108,4278.2,4277.8,1.64317417]
[1757432446645,3.974,4278.1,4278.0,0.1168]
[1757432446853,3.974,4278.1,4278.0,1.3652]
[1757432447168,3.974,4278.2,4278.0,1.80893158]
[1757432447455,3.974,4278.2,4278.1,0.9347]
[1757432447676,3.973,4278.3,4278.1,1.3652]
[1757432447961,3.973,4278.3,4278.2,0.9347]
[1757432448137,1.794,4278.8,4278.5,2.33726454]
[1757432448362,1.794,4278.8,4278.7,2.65085848]
[1757432448534,3.974,4278.8,4278.7,1.2484]
[1757432448735,3.974,4278.8,4278.7,1.3652]
[1757432449150,3.9732,4278.8,4278.7,3.70235848]
[1757432449450,0.001,4279.1,4278.7,4.30631978]
[1757432449668,0.001,4279.1,4278.8,0.9347]
[1757432449669,3.974,4279.0,4278.8,0.9347]
[1757432449868,3.974,4279.0,4278.7,1.03446568]
[1757432449869,3.974,4279.0,4278.9,0.3137]
[1757432450033,6.42779462,4279.0,4278.9,0.3137]
[1757432450369,2.45379462,4279.0,4278.9,0.3137]
[1757432450674,3.975,4279.1,4278.9,1.2484]
[1757432450882,0.001,4279.1,4279.0,0.9347]
[1757432451027,0.001,4279.1,4279.0,1.2484]
[1757432452448,2.33794001,4279.1,4279.0,0.3137]
[1757432452625,2.33715848,4278.7,4278.1,0.479]
[1757432452833,2.33731503,4278.5,4278.2,0.4557]
[1757432453133,0.001,4279.1,4277.9,0.1168]
[1757432453134,2.33737699,4278.3,4277.9,0.1168]
[1757432453350,2.33757831,4278.0,4277.8,0.00200001]
[1757432453638,3.974,4277.9,4277.8,0.00200001]
[1757432454043,3.974,4277.9,4277.8,0.31570001]
[1757432454469,6.59999554,4277.9,4277.8,0.00200001]
[1757432456062,6.31159554,4277.9,4277.8,0.00200001]
[1757432456263,6.31159554,4277.9,4277.8,0.77140001]
[1757432456466,7.10359554,4277.9,4277.8,0.31570001]
[1757432456641,7.86259554,4277.9,4277.8,0.00200001]
[1757432456840,9.65659554,4277.9,4277.8,0.00200001]
[1757432457045,10.08569554,4277.9,4277.8,0.00200001]
[1757432457932,9.65659554,4277.9,4277.8,0.00200001]
[1757432458174,9.18599554,4277.9,4277.8,0.00200001]
[1757432458535,9.61509554,4277.9,4277.8,0.00200001]
[1757432458936,11.50824654,4277.9,4277.8,0.00200001]
[1757432459739,11.07914654,4277.9,4277.8,0.00200001]
[1757432459942,10.60854654,4277.9,4277.8,0.00200001]
[1757432460381,1.794,4277.9,4277.8,0.79470001]
[1757432460677,8.22039554,4277.9,4277.8,0.00200001]
[1757432462473,5.8828,4277.9,4277.8,1.20520001]
[1757432462692,0.001,4278.1,4277.8,1.20520001]
[1757432462912,3.972,4277.9,4277.8,0.42060001]
[1757432463084,3.973,4278.1,4277.8,0.42060001]
[1757432463411,3.973,4278.1,4277.9,0.9014]
[1757432463705,3.973,4278.1,4278.0,0.3018]
[1757432463706,6.31048626,4278.1,4278.0,0.3018]
[1757432463907,3.973,4278.1,4278.0,0.3018]
[1757432464114,3.973,4278.1,4278.0,0.7336]
[1757432464406,6.31048626,4278.1,4278.0,0.7336]
[1757432464581,6.31048626,4278.1,4278.0,0.3018]
[1757432464771,3.973,4278.1,4278.0,1.2032]
[1757432465586,6.31048626,4278.1,4278.0,1.2032]
[1757432466112,6.31048626,4278.1,4278.0,0.3018]
[1757432466315,6.31048626,4278.1,4277.8,0.00200001]
[1757432466316,2.33759554,4277.9,4277.8,0.00200001]
[1757432466515,6.30959554,4277.9,4277.8,0.00200001]
[1757432467274,6.61349554,4277.9,4277.8,0.00200001]
[1757432467492,6.73029554,4277.9,4277.8,0.00200001]
[1757432468096,0.4989,4279.6,4277.8,1.02623417]
[1757432468318,0.4989,4279.6,4279.0,2.45379462]
[1757432468319,0.001,4279.6,4279.0,2.45379462]
[1757432468535,0.001,4279.6,4279.0,9.68217408]
[1757432468736,0.001,4279.6,4279.0,10.87027408]
[1757432469801,0.001,4279.6,4279.0,11.00100812]
[1757432470731,0.001,4279.6,4279.0,9.25518817]
[1757432471321,0.001,4279.6,4279.0,8.00100812]
[1757432471997,0.001,4279.6,4279.0,8.09448605]
[1757432475309,0.001,4279.6,4279.0,0.7947135]
[1757432475540,0.0002,4279.1,4279.0,0.24753404]
[1757432475709,0.0002,4279.1,4279.0,0.54933404]
[1757432476805,0.0002,4279.1,4279.0,2.88632866]
[1757432477030,0.0002,4279.1,4279.0,0.54933404]
[1757432477398,0.0002,4279.1,4279.0,3.31812866]
[1757432477599,0.0002,4279.1,4279.0,4.34749731]
[1757432478223,0.0002,4279.1,4279.0,8.33849731]
[1757432478610,0.0002,4279.1,4279.0,3.89299731]
[1757432480738,0.0002,4279.1,4279.0,3.46119731]
[1757432481038,0.0002,4279.1,4279.0,3.89299731]
[1757432482142,0.0002,4279.1,4279.0,6.16386725]
[1757432482330,0.0002,4279.1,4279.0,6.14049731]
[1757432483247,0.0002,4279.1,4279.0,9.14049731]
[1757432485441,0.0002,4279.1,4279.0,12.67199731]
[1757432486378,0.0002,4279.1,4279.0,9.60140269]
[1757432486580,0.0002,4279.1,4279.0,12.24019731]
[1757432486952,0.0002,4279.1,4279.0,6.90320269]
[1757432487158,0.0002,4279.1,4279.0,9.24019731]
[1757432487341,0.0002,4279.1,4279.0,8.93839731]
[1757432487536,0.0002,4279.1,4279.0,9.24019731]
[1757432487742,0.3041,4279.1,4279.0,6.02653404]
[1757432488265,0.802,4279.1,4279.0,0.24753404]
[1757432488462,3.13894001,4279.1,4279.0,0.24753404]
[1757432488664,3.60594001,4279.1,4279.0,0.24753404]
[1757432489186,3.60594001,4279.1,4278.6,3.983]
[1757432489501,2.33710386,4278.8,4278.7,0.24725066]
[1757432489777,2.33706133,4278.9,4278.7,0.24725066]
[1757432489976,2.33706133,4278.9,4278.7,0.1168]
[1757432489977,0.3039,4278.8,4278.7,0.1168]
[1757432490282,3.13890386,4278.8,4278.7,0.24725258]
[1757432490782,0.8018,4278.8,4278.7,0.24725258]
[1757432490983,3.13890386,4278.8,4278.7,0.1168]
[1757432491190,0.8018,4278.8,4278.7,0.1168]
[1757432491404,0.4672,4279.1,4278.7,0.1168]
[1757432491567,2.64100386,4278.8,4278.7,0.1168]
[1757432491891,0.792,4278.5,4277.8,0.00200001]